bitfinex/quotes_SOLUSD_20251201
["timestamp","ask_amount","ask_price","bid_price","bid_amount"]
[1764575550640,0.79,127.53,127.52,4.43688133]
[1764575550930,0.1,127.53,127.52,5.11688133]
[1764575551129,0.1,127.53,127.52,8.57688133]
[1764575551712,0.1,127.53,127.52,11.71968235]
[1764575553427,0.1,127.53,127.52,19.5615895]
[1764575555131,0.8,127.53,127.52,7.84190715]
[1764575557569,0.8,127.53,127.51,31.88563264]
[1764575565333,0.8,127.53,127.51,27.44875131]
[1764575573157,0.8,127.53,127.51,32.56563264]
[1764575573454,0.8,127.53,127.51,31.88563264]
[1764575578259,0.8,127.53,127.51,27.44875131]
[1764575580764,0.8,127.53,127.52,12.27878848]
[1764575580965,0.1,127.53,127.52,12.99878848]
[1764575581968,0.1,127.53,127.52,36.56979614]
[1764575582268,0.1,127.53,127.52,12.99878848]
[1764575582448,0.1,127.53,127.52,36.56979614]
[1764575582643,0.1,127.53,127.52,32.13291481]
[1764575582869,0.1,127.53,127.52,36.56979614]
[1764575583371,0.1,127.53,127.52,12.99878848]
[1764575584650,0.1,127.53,127.52,8.56190715]
[1764575584848,0.1,127.53,127.52,12.99878848]
[1764575588768,0.1,127.53,127.52,16.45878848]
[1764575589781,0.1,127.53,127.52,12.02190715]
[1764575589948,0.1,127.53,127.52,16.45878848]
[1764575590962,0.79,127.53,127.52,7.84190715]
[1764575592103,0.79,127.53,127.51,27.44875131]
[1764575592762,0.79,127.53,127.51,30.59179928]
[1764575594584,0.79,127.53,127.51,30.28632912]
[1764575594766,0.79,127.53,127.51,27.44875131]
[1764575596647,0.1,127.53,127.51,31.00632912]
[1764575596853,0.79,127.53,127.51,30.28632912]
[1764575597158,0.1,127.53,127.51,30.28632912]
[1764575597671,0.1,127.53,127.52,7.01757781]
[1764575598052,0.1,127.53,127.52,30.58858547]
[1764575598467,0.1,127.53,127.52,38.43049262]
[1764575599379,0.79,127.56,127.52,113.55366024]
[1764575599588,0.79,127.56,127.53,0.72]
[1764575600256,0.1,127.56,127.54,2.83757781]
[1764575600686,0.1,127.56,127.55,7.84006272]
[1764575601190,0.79,127.56,127.55,7.84006272]
[1764575604981,3.62757781,127.56,127.53,7.84129224]
[1764575605177,8.80994492,127.53,127.5,7.84313725]
[1764575605375,0.69,127.52,127.5,7.84313725]
[1764575606277,0.69,127.52,127.5,27.45073246]
[1764575607079,11.64752273,127.51,127.5,27.45073246]
[1764575607382,8.80994492,127.51,127.5,27.45073246]
[1764575607560,9.52994492,127.51,127.5,27.45073246]
[1764575607957,8.80994492,127.51,127.5,27.45073246]
[1764575608159,9.52994492,127.51,127.5,27.45073246]
[1764575608356,0.72,127.51,127.5,19.60759521]
[1764575608575,0.72,127.52,127.5,19.60759521]
[1764575610484,9.52994492,127.54,127.5,31.00831027]
[1764575610677,2.93757781,127.56,127.51,2.83757781]
[1764575610873,0.72,127.55,127.52,2.83757781]
[1764575611070,0.72,127.55,127.51,19.768864]
[1764575611381,8.80994492,127.54,127.51,23.32644181]
[1764575611984,0.68,127.53,127.51,23.32644181]
[1764575612186,8.80994492,127.54,127.51,23.32644181]
[1764575612483,8.80994492,127.54,127.52,27.44667502]
[1764575612680,9.48994492,127.54,127.52,27.44667502]
[1764575614691,8.80994492,127.54,127.52,7.84190715]
[1764575614866,0.68,127.53,127.52,7.84190715]
[1764575615268,0.68,127.53,127.52,27.44667502]
[1764575615886,51.92492393,127.55,127.52,31.00425283]
[1764575617100,51.24492393,127.55,127.53,2.83757781]
[1764575617290,9.58994492,127.56,127.53,3.55757781]
[1764575617664,8.90994492,127.56,127.53,3.55757781]
[1764575617966,0.68,127.55,127.53,2.83757781]
[1764575618292,0.68,127.55,127.52,30.90667502]
[1764575618293,8.80994492,127.54,127.52,27.44667502]
[1764575618790,9.58994492,127.56,127.53,3.55757781]
[1764575619189,0.68,127.55,127.53,3.55757781]
[1764575619394,0.68,127.55,127.53,2.83757781]
[1764575619691,0.68,127.55,127.52,79.0237335]
[1764575619897,0.68,127.55,127.52,39.09419775]
[1764575620082,8.80994492,127.54,127.52,27.44667502]
[1764575620469,0.68,127.53,127.52,27.44667502]
[1764575621294,12.32752273,127.53,127.52,7.84190715]
[1764575621682,9.48994492,127.53,127.52,7.84190715]
[1764575621878,12.32752273,127.53,127.52,7.84190715]
[1764575622493,8.80994492,127.52,127.5,19.60761173]
[1764575622790,9.48994492,127.52,127.5,19.60761173]
[1764575624410,9.48994492,127.51,127.5,19.60761173]
[1764575624697,12.32752273,127.51,127.48,30.91528709]
[1764575624890,0.68,127.5,127.48,30.91528709]
[1764575625798,9.48994492,127.51,127.48,31.63528709]
[1764575626802,0.68,127.5,127.48,30.91528709]
[1764575627282,8.80994492,127.51,127.48,31.63528709]
[1764575627485,9.48994492,127.51,127.48,31.63528709]
[1764575629798,9.48994492,127.51,127.48,34.4728649]
[1764575631002,2.83757781,127.52,127.48,34.4728649]
[1764575631003,8.80994492,127.52,127.51,16.308864]
[1764575631698,8.80994492,127.52,127.51,17.028864]
[1764575632298,8.80994492,127.52,127.51,16.308864]
[1764575632500,9.48994492,127.52,127.51,16.308864]
[1764575632806,8.80994492,127.52,127.51,16.308864]
[1764575633511,8.80994492,127.52,127.51,24.15138615]
[1764575633710,9.48994492,127.52,127.51,24.15138615]
[1764575634700,12.32752273,127.52,127.49,7.84375245]
[1764575634890,11.64752273,127.5,127.47,7.84498313]
[1764575635100,8.80994492,127.48,127.47,7.84498313]
[1764575635600,9.48994492,127.48,127.46,27.45959515]
[1764575636811,94.60371797,127.53,127.47,3.53757781]
[1764575636812,12.98994492,127.53,127.47,3.53757781]
[1764575637014,8.80994492,127.52,127.49,2.83757781]
[1764575637211,9.52994492,127.52,127.49,2.83757781]
[1764575637413,9.52994492,127.52,127.49,3.53757781]
[1764575637713,9.52994492,127.52,127.5,27.45098038]
[1764575637918,0.72,127.51,127.5,27.45098038]
[1764575638214,9.52994492,127.51,127.5,7.84313725]
[1764575639419,8.80994492,127.5,127.47,9.52994492]
[1764575639597,9.52994492,127.5,127.47,7.84477874]
[1764575639792,0.72,127.49,127.47,7.84477874]
[1764575640518,2.83757781,127.51,127.47,7.84477874]
[1764575641017,2.83757781,127.5,127.47,7.84477874]
[1764575641221,2.83757781,127.48,127.46,7.84559861]
[1764575641417,6.29757781,127.47,127.42,20.31930437]
[1764575641601,2.83757781,127.45,127.42,19.61930437]
[1764575641808,3.46,127.47,127.4,19.62259709]
[1764575641809,2.83757781,127.43,127.4,19.62259709]
[1764575642209,2.83757781,127.43,127.4,27.47189065]
[1764575642613,9.52994492,127.45,127.4,27.47189065]
[1764575642803,3.55757781,127.44,127.4,28.17189065]
[1764575644811,2.83757781,127.43,127.4,28.17189065]
[1764575645437,0.72,127.44,127.4,28.17189065]
[1764575645602,2.83757781,127.43,127.4,28.17189065]
[1764575646534,3.55757781,127.44,127.4,28.17189065]
[1764575647025,54.80250174,127.44,127.4,28.17189065]
[1764575647928,51.24492393,127.44,127.4,31.00946846]
[1764575648108,54.08250174,127.44,127.4,28.17189065]
[1764575651010,54.80250174,127.44,127.4,28.17189065]
[1764575651530,2.83757781,127.43,127.4,27.47189065]
[1764575651919,3.55757781,127.43,127.4,7.84929356]
[1764575652117,2.83757781,127.42,127.4,7.84929356]
[1764575652316,3.55757781,127.43,127.4,7.84929356]
[1764575652516,5.16219201,127.43,127.4,7.84929356]
[1764575653106,5.16219201,127.43,127.4,8.54929356]
[1764575654407,13.25213693,127.41,127.39,0.2]
[1764575654614,4.44219201,127.4,127.39,0.2]
[1764575655165,13.97213693,127.41,127.39,0.2]
[1764575655331,4.44219201,127.4,127.39,0.2]
[1764575655536,5.16219201,127.4,127.36,11.31165162]
[1764575655731,13.25213693,127.41,127.36,12.29384363]
[1764575655913,5.16219201,127.4,127.36,27.4810486]
[1764575657332,4.44219201,127.37,127.35,7.85208395]
[1764575657845,4.44219201,127.37,127.34,23.73359899]
[1764575657846,4.44219201,127.36,127.34,7.85272446]
[1764575658009,5.16219201,127.36,127.33,0.2]
[1764575658428,5.16219201,127.36,127.33,8.05348805]
[1764575658911,5.16219201,127.35,127.33,0.2]
[1764575659312,0.72,127.34,127.33,0.2]
[1764575659514,0.72,127.34,127.33,8.05360873]
[1764575660330,9.52994492,127.35,127.33,8.05360873]
[1764575660532,13.97213693,127.35,127.33,8.05360873]
[1764575660925,9.52994492,127.35,127.33,27.68763056]
[1764575661132,13.97213693,127.35,127.33,27.68763056]
[1764575661835,9.52994492,127.35,127.33,27.68763056]
[1764575662025,13.97213693,127.35,127.33,27.68763056]
[1764575662820,13.25213693,127.35,127.33,27.68763056]
[1764575663026,0.72,127.35,127.33,27.68763056]
[1764575663325,13.97213693,127.35,127.33,27.68763056]
[1764575663938,3.46,127.36,127.33,27.68763056]
[1764575663939,13.97213693,127.34,127.33,27.68763056]
[1764575665119,12.26994492,127.35,127.33,27.68763056]
[1764575665335,5.16219201,127.38,127.34,0.71]
[1764575665535,4.44219201,127.4,127.35,7.90219201]
[1764575665739,3.46,127.4,127.36,4.44219201]
[1764575665943,12.26994492,127.4,127.37,27.47899819]
[1764575666134,12.96994492,127.4,127.37,27.47899819]
[1764575666945,12.26994492,127.4,127.37,27.47899819]
[1764575667152,8.80994492,127.4,127.37,32.6111902]
[1764575668356,8.80994492,127.4,127.37,28.16899819]
[1764575668655,8.80994492,127.41,127.37,32.6111902]
[1764575668831,9.50994492,127.41,127.37,32.6111902]
[1764575670045,13.95213693,127.41,127.37,28.16899819]
[1764575671253,9.50994492,127.41,127.37,32.6111902]
[1764575671547,13.95213693,127.41,127.37,28.16899819]
[1764575671751,4.44219201,127.4,127.37,27.47899819]
[1764575672076,4.44219201,127.4,127.37,19.62785585]
[1764575672077,5.14219201,127.4,127.37,19.62785585]
[1764575672352,13.95213693,127.4,127.37,19.62785585]
[1764575672838,9.50994492,127.4,127.37,19.62785585]
[1764575673032,9.50994492,127.4,127.37,27.47899819]
[1764575673253,0.7,127.39,127.37,27.47899819]
[1764575675744,8.80994492,127.4,127.38,0.69]
[1764575675945,51.94492393,127.41,127.38,0.69]
[1764575676146,9.50994492,127.45,127.4,4.44219201]
[1764575676352,9.50994492,127.45,127.41,4.44219201]
[1764575676538,59.14711594,127.46,127.4,0.69]
[1764575676734,0.7,127.44,127.4,5.13219201]
[1764575677132,0.7,127.44,127.41,5.13219201]
[1764575677938,8.80994492,127.45,127.42,28.15821534]
[1764575678234,54.70492393,127.46,127.42,27.46821534]
[1764575678235,0.7,127.44,127.42,27.46821534]
[1764575678758,5.14219201,127.44,127.42,27.46821534]
[1764575679652,0.7,127.44,127.42,19.62015382]
[1764575680552,5.14219201,127.44,127.42,19.62015382]
[1764575681164,0.7,127.44,127.42,19.62015382]
[1764575682047,5.14219201,127.44,127.42,19.62015382]
[1764575684860,0.7,127.44,127.42,19.62015382]
[1764575687251,5.14219201,127.44,127.42,19.62015382]
[1764575690551,60.75486885,127.43,127.41,7.84867749]
[1764575690758,65.19706086,127.43,127.41,7.84867749]
[1764575690960,65.19706086,127.43,127.41,27.47037123]
[1764575691766,60.75486885,127.43,127.41,27.47037123]
[1764575692067,51.24492393,127.43,127.41,28.16037123]
[1764575699262,51.92492393,127.43,127.41,28.16037123]
[1764575699765,51.24492393,127.43,127.41,28.16037123]
[1764575700249,51.92492393,127.43,127.41,28.16037123]
[1764575700992,0.68,127.46,127.42,5.16219201]
[1764575701155,64.19486885,127.47,127.43,4.44219201]
[1764575701355,64.19486885,127.47,127.43,5.16219201]
[1764575701585,64.19486885,127.47,127.44,0.72]
[1764575702384,64.19486885,127.47,127.45,7.8462142]
[1764575707880,0.68,127.46,127.45,7.8462142]
[1764575708469,64.19486885,127.47,127.45,7.8462142]
[1764575709272,54.70492393,127.47,127.45,28.1817497]
[1764575709963,55.38492393,127.47,127.45,28.1817497]
[1764575710376,13.93213693,127.46,127.44,7.84655414]
[1764575710685,13.25213693,127.45,127.41,19.62055086]
[1764575710869,4.44219201,127.44,127.42,19.62015382]
[1764575711064,5.12219201,127.44,127.42,19.62015382]
[1764575711384,5.12219201,127.44,127.42,20.34015382]
[1764575711892,0.68,127.44,127.42,20.34015382]
[1764575712385,0.68,127.44,127.42,28.18821534]
[1764575713170,0.68,127.44,127.42,27.46821534]
[1764575715483,0.68,127.44,127.42,19.62015382]
[1764575716289,3.52221825,127.44,127.42,19.62015382]
[1764575716589,6.98221825,127.44,127.42,19.62015382]
[1764575718083,4.14,127.44,127.42,19.62015382]
[1764575718773,6.98221825,127.44,127.42,19.62015382]
[1764575720270,6.98221825,127.44,127.42,27.46821534]
[1764575720805,4.14,127.44,127.42,27.46821534]
[1764575721097,3.46,127.44,127.42,28.18821534]
[1764575721483,4.14,127.44,127.42,28.18821534]
[1764575722294,3.46,127.44,127.42,28.18821534]
[1764575722502,4.14,127.44,127.42,28.18821534]
[1764575723397,6.98221825,127.44,127.42,19.62015382]
[1764575724078,3.46,127.44,127.42,20.34015382]
[1764575724283,4.14,127.44,127.42,28.18821534]
[1764575728091,4.14,127.44,127.42,19.62015382]
[1764575728601,4.14,127.44,127.42,20.31015382]
[1764575729903,4.14,127.44,127.42,28.15821534]
[1764575730104,6.98221825,127.44,127.42,27.46821534]
[1764575730800,4.14,127.44,127.42,28.15821534]
[1764575731200,4.14,127.44,127.42,27.46821534]
[1764575732000,4.14,127.44,127.42,20.31015382]
[1764575734512,4.14,127.44,127.42,28.15821534]
[1764575735508,6.98221825,127.44,127.42,27.46821534]
[1764575735710,6.98221825,127.44,127.42,8.53806152]
[1764575735894,6.98221825,127.44,127.42,7.84806152]
[1764575736095,6.98221825,127.44,127.42,8.53806152]
[1764575738714,4.16,127.44,127.42,28.15821534]
[1764575740314,0.7,127.44,127.42,28.15821534]
[1764575742489,54.70492393,127.45,127.43,0.69]
[1764575742687,8.80994492,127.47,127.43,0.69]
[1764575742912,51.24492393,127.49,127.46,2.84221825]
[1764575742913,8.80994492,127.49,127.46,2.84221825]
[1764575743097,8.80994492,127.49,127.47,0.69]
[1764575743494,0.7,127.5,127.47,0.69]
[1764575744611,8.80994492,127.5,127.48,7.84436774]
[1764575745112,61.92727759,127.55,127.49,7.01221825]
[1764575745414,6.97221825,127.55,127.5,2.84221825]
[1764575745591,9.47994492,127.54,127.5,3.55221825]
[1764575745791,9.47994492,127.54,127.51,0.71]
[1764575746821,9.47994492,127.54,127.52,7.84190715]
[1764575747610,6.30221825,127.55,127.53,0.71]
[1764575747611,3.46,127.55,127.53,0.71]
[1764575747813,9.47994492,127.54,127.52,27.44667502]
[1764575747990,8.80994492,127.54,127.52,27.44667502]
[1764575748189,7.32216317,127.54,127.52,27.44667502]
[1764575749014,4.47994492,127.54,127.52,27.44667502]
[1764575749216,7.32216317,127.54,127.52,27.44667502]
[1764575749727,2.84221825,127.53,127.52,7.84190715]
[1764575750198,11.65216317,127.53,127.52,7.84190715]
[1764575750902,60.72486885,127.53,127.51,7.84252215]
[1764575752119,63.5670871,127.53,127.51,7.84252215]
[1764575752296,67.0270871,127.53,127.51,7.84252215]
[1764575754103,0.67,127.52,127.5,27.45060062]
[1764575754304,3.51221825,127.52,127.5,7.84313725]
[1764575754700,2.84221825,127.52,127.5,8.55313725]
[1764575755520,63.51486885,127.53,127.51,0.71]
[1764575755719,64.18486885,127.53,127.51,0.71]
[1764575755897,63.51486885,127.53,127.51,0.71]
[1764575756211,63.51486885,127.53,127.52,7.84190715]
[1764575756923,51.24492393,127.53,127.52,8.54190715]
[1764575759498,51.24492393,127.53,127.52,7.84190715]
[1764575759698,51.24492393,127.53,127.51,7.84252215]
[1764575759914,51.24492393,127.53,127.51,8.54252215]
[1764575760423,51.24492393,127.53,127.51,28.14882753]
[1764575760731,12.26994492,127.55,127.52,0.7]
[1764575760902,8.80994492,127.55,127.52,0.7]
[1764575761099,11.65216317,127.54,127.51,27.44882753]
[1764575761421,2.84221825,127.54,127.52,0.7]
[1764575761621,11.65216317,127.54,127.52,0.7]
[1764575761826,11.65216317,127.54,127.52,7.84190715]
[1764575762120,2.84221825,127.53,127.52,7.84190715]
[1764575762322,12.32216317,127.54,127.52,7.84190715]
[1764575763523,9.47994492,127.54,127.52,7.84190715]
[1764575763821,12.32216317,127.54,127.52,7.84190715]
[1764575764623,8.80994492,127.54,127.52,0.7]
[1764575764821,12.32216317,127.54,127.51,28.14882753]
[1764575765602,3.46,127.53,127.51,27.44882753]
[1764575765805,57.54714218,127.53,127.51,28.14882753]
[1764575766002,58.21714218,127.53,127.51,27.44882753]
[1764575766997,54.70492393,127.53,127.51,20.30630538]
[1764575767200,63.51486885,127.53,127.52,0.7]
[1764575768332,54.70492393,127.53,127.52,0.7]
[1764575768799,51.24492393,127.53,127.52,0.7]
[1764575769227,51.24492393,127.53,127.52,8.54190715]
[1764575771326,51.24492393,127.53,127.52,8.54190715]
[1764575771706,51.24492393,127.55,127.52,30.98889327]
[1764575772031,51.24492393,127.55,127.53,0.7]
[1764575772515,0.1,127.56,127.53,3.54221825]
[1764575772714,0.1,127.56,127.53,0.7]
[1764575773029,0.1,127.56,127.54,0.7]
[1764575773422,0.1,127.56,127.55,7.84006272]
[1764575773619,11.75216317,127.56,127.55,7.84006272]
[1764575773819,12.42216317,127.56,127.55,7.84006272]
[1764575775313,12.42216317,127.56,127.54,27.44225262]
[1764575775629,2.84221825,127.55,127.54,7.84067743]
[1764575776326,9.57994492,127.56,127.54,7.84067743]
[1764575776806,4.43350266,127.55,127.54,7.84067743]
[1764575777719,65.25837151,127.56,127.54,7.84067743]
[1764575778713,64.58837151,127.56,127.54,8.54067743]
[1764575779123,65.25837151,127.56,127.54,8.54067743]
[1764575779632,65.25837151,127.56,127.53,28.14420287]
[1764575780214,60.82486885,127.56,127.53,27.44420287]
[1764575780421,65.25837151,127.56,127.53,27.44420287]
[1764575780608,65.25837151,127.56,127.53,28.14420287]
[1764575781842,17.37344758,127.55,127.53,27.44420287]
[1764575782547,3.46,127.55,127.53,27.44420287]
[1764575782833,3.46,127.55,127.53,28.14420287]
[1764575783827,59.23842659,127.56,127.53,28.14420287]
[1764575784032,59.90842659,127.56,127.53,20.30291063]
[1764575784234,54.80492393,127.56,127.54,0.7]
[1764575785328,0.1,127.56,127.54,5.13350266]
[1764575785649,0.1,127.56,127.54,8.59350266]
[1764575785830,0.1,127.56,127.55,0.67]
[1764575786148,0.1,127.56,127.55,12.94356538]
[1764575787217,0.1,127.56,127.55,8.51006272]
[1764575788224,0.1,127.56,127.55,12.94356538]
[1764575789831,0.1,127.56,127.55,8.51006272]
[1764575790270,0.1,127.56,127.55,12.94356538]
[1764575792947,0.1,127.56,127.55,17.17356538]
[1764575796550,0.1,127.56,127.55,12.74006272]
[1764575796750,0.1,127.56,127.55,17.17356538]
[1764575800042,0.1,127.56,127.55,8.51006272]
[1764575800425,0.1,127.56,127.55,12.94356538]
[1764575803068,0.76,127.56,127.55,7.84006272]
[1764575803236,0.1,127.56,127.55,7.84006272]
[1764575803737,0.76,127.56,127.55,7.84006272]
[1764575803940,0.1,127.56,127.55,7.84006272]
[1764575806041,0.1,127.56,127.55,16.45356538]
[1764575806644,0.1,127.56,127.55,19.59562578]
[1764575819373,0.1,127.56,127.55,15.16212312]
[1764575819672,0.1,127.56,127.55,12.02006272]
[1764575819979,0.1,127.56,127.55,8.56006272]
[1764575821571,0.1,127.56,127.55,7.84006272]
[1764575822074,0.1,127.56,127.55,12.97356538]
[1764575822380,0.1,127.56,127.55,17.40706804]
[1764575823572,0.1,127.56,127.55,12.97356538]
[1764575823777,0.1,127.56,127.55,17.40706804]
[1764575828586,1e-08,127.56,127.55,17.40706804]
[1764575828786,1e-08,127.56,127.55,33.71593204]
[1764575829478,1e-08,127.56,127.55,37.17593204]
[1764575831268,0.1,127.6,127.58,16.308864]
[1764575831463,0.1,127.6,127.59,4.43350266]
[1764575832087,0.1,127.6,127.59,5.13350266]
[1764575832490,0.1,127.6,127.59,12.27110748]
[1764575833391,1e-08,127.6,127.59,16.43110748]
[1764575833578,1e-08,127.6,127.59,15.73110748]
[1764575833776,1e-08,127.6,127.59,24.5410524]
[1764575834273,1e-08,127.6,127.59,15.73110748]
[1764575835492,8.80994492,127.59,127.53,0.7]
[1764575835694,4.43350266,127.58,127.54,4.43350266]
[1764575835868,5.11350266,127.58,127.54,27.44168131]
[1764575836068,5.11350266,127.57,127.54,27.44168131]
[1764575836889,5.11350266,127.57,127.54,28.14168131]
[1764575838382,3.51663465,127.57,127.54,28.14168131]
[1764575838585,0.68,127.57,127.54,30.97831596]
[1764575839791,3.51663465,127.57,127.54,28.14168131]
[1764575840096,8.80994492,127.54,127.51,7.84233121]
[1764575840270,2.83663465,127.52,127.51,7.84233121]
[1764575840469,3.51663465,127.53,127.5,19.60672373]
[1764575840889,0.68,127.52,127.5,19.60672373]
[1764575841097,0.68,127.52,127.49,10.6803871]
[1764575841596,3.51663465,127.52,127.49,7.84375245]
[1764575841811,0.68,127.52,127.49,7.84375245]
[1764575842478,0.68,127.52,127.49,11.3803871]
[1764575842884,0.68,127.52,127.49,10.6803871]
[1764575843286,3.51663465,127.52,127.49,7.84375245]
[1764575843901,3.51663465,127.52,127.49,8.54375245]
[1764575845093,3.51663465,127.52,127.49,7.84375245]
[1764575845307,0.68,127.51,127.49,7.84375245]
[1764575845685,0.68,127.52,127.49,8.54375245]
[1764575845900,3.51663465,127.52,127.49,8.54375245]
[1764575846087,0.68,127.52,127.49,11.3803871]
[1764575846874,3.51663465,127.52,127.49,30.98976822]
[1764575847076,2.83663465,127.5,127.49,7.84375245]
[1764575847402,2.83663465,127.5,127.47,27.45651943]
[1764575847692,0.71,127.49,127.47,27.45651943]
[1764575849087,3.54663465,127.5,127.47,27.45651943]
[1764575849383,3.54663465,127.5,127.47,30.29315408]
[1764575849587,3.54663465,127.5,127.47,27.45651943]
[1764575849902,3.54663465,127.5,127.47,30.99315408]
[1764575850600,0.71,127.5,127.47,30.99315408]
[1764575850787,0.71,127.5,127.47,7.84498313]
[1764575850994,3.54663465,127.5,127.47,7.84498313]
[1764575851395,0.71,127.49,127.47,7.84498313]
[1764575851776,23.05945342,127.56,127.48,2.83663465]
[1764575852090,3.54663465,127.52,127.48,3.53663465]
[1764575852288,16.308864,127.55,127.49,0.7]
[1764575852596,3.54663465,127.54,127.52,16.308864]
[1764575852810,3.54663465,127.54,127.51,16.308864]
[1764575852972,0.71,127.53,127.51,16.308864]
[1764575853176,3.54663465,127.54,127.51,17.008864]
[1764575853979,0.71,127.54,127.52,7.84190715]
[1764575855203,2.83663465,127.58,127.53,3.53663465]
[1764575855382,2.83663465,127.59,127.55,16.308864]
[1764575855583,3.54663465,127.57,127.53,32.11544357]
[1764575855888,3.54663465,127.57,127.54,7.84067743]
[1764575856090,0.71,127.56,127.54,7.84067743]
[1764575856587,0.71,127.56,127.53,7.84101453]
[1764575856588,11.64657957,127.55,127.53,7.84101453]
[1764575856997,12.35657957,127.55,127.53,7.84101453]
[1764575857195,9.51994492,127.55,127.53,7.84101453]
[1764575859506,0.71,127.57,127.54,3.53663465]
[1764575859705,0.71,127.57,127.54,2.83663465]
[1764575860509,0.71,127.57,127.53,30.98087979]
[1764575860811,54.79155858,127.57,127.53,30.98087979]
[1764575862116,54.08155858,127.57,127.53,30.98087979]
[1764575862297,54.79155858,127.57,127.53,30.98087979]
[1764575862504,0.71,127.56,127.53,30.98087979]
[1764575862816,0.71,127.56,127.53,28.14424514]
[1764575863008,3.54663465,127.56,127.53,28.14424514]
[1764575863201,54.79155858,127.57,127.54,0.7]
[1764575863388,54.79155858,127.57,127.53,30.98087979]
[1764575864612,51.95492393,127.57,127.53,34.44087979]
[1764575864812,54.79155858,127.57,127.53,34.44087979]
[1764575868418,0.71,127.56,127.53,31.60424514]
[1764575870023,0.71,127.56,127.53,28.14424514]
[1764575870225,54.79155858,127.57,127.54,0.7]
[1764575870618,51.95492393,127.57,127.54,0.7]
[1764575871538,51.95492393,127.57,127.55,7.84006272]
[1764575875023,0.71,127.56,127.55,7.84006272]
[1764575875709,54.79155858,127.57,127.54,27.44200131]
[1764575876106,51.91492393,127.57,127.54,27.44200131]
[1764575876327,54.75155858,127.57,127.54,27.44200131]
[1764575876721,54.75155858,127.57,127.54,28.15200131]
[1764575876918,51.91492393,127.57,127.54,27.44200131]
[1764575877118,51.91492393,127.57,127.54,30.98863596]
[1764575877428,51.91492393,127.57,127.54,28.15200131]
[1764575877826,51.91492393,127.57,127.55,0.71]
[1764575878025,51.24492393,127.57,127.55,0.71]
[1764575878605,8.80994492,127.59,127.55,7.00663465]
[1764575878915,9.47994492,127.59,127.56,2.83663465]
[1764575879119,9.47994492,127.59,127.56,3.54663465]
[1764575879722,3.46000001,127.6,127.57,0.71]
[1764575880029,0.67,127.59,127.58,7.83821915]
[1764575880701,12.31657957,127.59,127.58,7.83821915]
[1764575881820,12.31657957,127.59,127.57,19.59706034]
[1764575882022,0.67,127.58,127.57,19.59706034]
[1764575882203,3.50663465,127.58,127.57,19.59706034]
[1764575882621,8.80994492,127.57,127.56,7.8394481]
[1764575882820,12.31657957,127.57,127.56,7.8394481]
[1764575883522,12.31657957,127.57,127.55,27.44002983]
[1764575883835,9.47994492,127.57,127.55,27.44002983]
[1764575884006,3.50663465,127.58,127.55,28.15002983]
[1764575884410,0.67,127.57,127.55,27.44002983]
[1764575884810,3.50663465,127.57,127.55,27.44002983]
[1764575885733,0.67,127.57,127.55,19.59996711]
[1764575886226,3.50663465,127.57,127.55,19.59996711]
[1764575887035,3.50663465,127.57,127.55,27.44002983]
[1764575887234,2.83663465,127.57,127.55,28.15002983]
[1764575887437,54.08155858,127.57,127.55,28.15002983]
[1764575887736,51.24492393,127.57,127.55,28.15002983]
[1764575889335,54.75155858,127.57,127.55,27.44002983]
[1764575890347,51.24492393,127.57,127.55,28.15002983]
[1764575890641,54.08155858,127.57,127.55,28.15002983]
[1764575893326,54.75155858,127.57,127.55,19.59996711]
[1764575893728,54.75155858,127.57,127.55,20.30996711]
[1764575894744,51.91492393,127.57,127.55,28.15002983]
[1764575894914,54.75155858,127.57,127.55,28.15002983]
[1764575895119,54.08155858,127.57,127.55,28.15002983]
[1764575895540,51.24492393,127.57,127.55,28.15002983]
[1764575895820,1e-08,127.6,127.56,23.31549865]
[1764575896022,1e-08,127.6,127.59,2.83663465]
[1764575896521,1e-08,127.6,127.59,3.54663465]
[1764575896766,1e-08,127.6,127.59,11.38423947]
[1764575897139,1e-08,127.6,127.59,8.54760482]
[1764575897354,1e-08,127.6,127.59,11.38423947]
[1764575898313,1e-08,127.6,127.59,12.00760482]
[1764575898524,1e-08,127.6,127.59,16.43401839]
[1764575899744,1e-08,127.6,127.59,8.54760482]
[1764575900063,1e-08,127.6,127.59,12.00760482]
[1764575900441,1e-08,127.6,127.59,16.43401839]
[1764575901738,1e-08,127.6,127.59,12.00760482]
[1764575901938,1e-08,127.6,127.59,16.43401839]
[1764575905164,1e-08,127.6,127.59,12.00760482]